[Event "Live Chess"]
[Site "Chess.com"]
[Date "2010.12.06"]
[Round "-"]
[White "hipposcottimus"]
[Black "sham1308"]
[Result "1-0"]
[CurrentPosition "r1b2qk1/1p5Q/2p1pb1p/p2p2p1/2nP4/2P5/PPB2PPP/RN2K2R b KQ -"]
[Timezone "UTC"]
[ECO "B10"]
[ECOUrl "https://www.chess.com/openings/Caro-Kann-Defense"]
[UTCDate "2010.12.06"]
[UTCTime "19:03:14"]
[WhiteElo "1535"]
[BlackElo "1447"]
[TimeControl "60"]
[Termination "hipposcottimus won by checkmate"]
[StartTime "19:03:14"]
[EndDate "2010.12.06"]
[EndTime "19:04:14"]
[Link "https://www.chess.com/game/live/74676895"]

1. e4 {[%clk 0:01:00]} 1... c6 {[%clk 0:01:00]} 2. e5 {[%clk 0:00:58.2]} 2... e6 {[%clk 0:00:59]} 3. d4 {[%clk 0:00:56.8]} 3... f5 {[%clk 0:00:57.6]} 4. exf6 {[%clk 0:00:55.1]} 4... g6 {[%clk 0:00:57]} 5. f7+ {[%clk 0:00:52.5]} 5... Kxf7 {[%clk 0:00:55.8]} 6. Qf3+ {[%clk 0:00:52.3]} 6... Nf6 {[%clk 0:00:54.2]} 7. Bg5 {[%clk 0:00:49.4]} 7... Be7 {[%clk 0:00:51]} 8. Nh3 {[%clk 0:00:47.8]} 8... Kg7 {[%clk 0:00:49.6]} 9. Qe3 {[%clk 0:00:45.8]} 9... Rf8 {[%clk 0:00:48.5]} 10. Bh6+ {[%clk 0:00:44.5]} 10... Kg8 {[%clk 0:00:47.8]} 11. Bxf8 {[%clk 0:00:43.7]} 11... Qxf8 {[%clk 0:00:46.8]} 12. Ng5 {[%clk 0:00:43.3]} 12... h6 {[%clk 0:00:44.5]} 13. Ne4 {[%clk 0:00:39.8]} 13... g5 {[%clk 0:00:43.2]} 14. Nxf6+ {[%clk 0:00:38.6]} 14... Bxf6 {[%clk 0:00:42.5]} 15. Bc4 {[%clk 0:00:38.3]} 15... d5 {[%clk 0:00:41.2]} 16. Bb3 {[%clk 0:00:36.2]} 16... Nd7 {[%clk 0:00:40]} 17. c3 {[%clk 0:00:35.9]} 17... Nb6 {[%clk 0:00:38.5]} 18. Bc2 {[%clk 0:00:35.6]} 18... a5 {[%clk 0:00:37.3]} 19. Qd3 {[%clk 0:00:34.9]} 19... Nc4 {[%clk 0:00:35.9]} 20. Qh7# {[%clk 0:00:33.9]} 1-0

[Event "Live Chess"]
[Site "Chess.com"]
[Date "2010.12.06"]
[Round "-"]
[White "sham1308"]
[Black "hipposcottimus"]
[Result "0-1"]
[CurrentPosition "r4rk1/p6p/1p3Rp1/3q4/3N1P2/2PP1KP1/7P/8 w - -"]
[Timezone "UTC"]
[ECO "C24"]
[ECOUrl "https://www.chess.com/openings/Bishops-Opening-Berlin-Defense"]
[UTCDate "2010.12.06"]
[UTCTime "19:00:40"]
[WhiteElo "1453"]
[BlackElo "1529"]
[TimeControl "60"]
[Termination "hipposcottimus won on time"]
[StartTime "19:00:40"]
[EndDate "2010.12.06"]
[EndTime "19:02:53"]
[Link "https://www.chess.com/game/live/74676167"]

1. e4 {[%clk 0:01:00]} 1... e5 {[%clk 0:01:00]} 2. Bc4 {[%clk 0:00:58.8]} 2... Nf6 {[%clk 0:00:57.7]} 3. Qf3 {[%clk 0:00:58]} 3... Nc6 {[%clk 0:00:55.9]} 4. Qb3 {[%clk 0:00:57.2]} 4... d5 {[%clk 0:00:54]} 5. exd5 {[%clk 0:00:55.5]} 5... Na5 {[%clk 0:00:53.1]} 6. Bb5+ {[%clk 0:00:53.4]} 6... c6 {[%clk 0:00:49.5]} 7. Qa4 {[%clk 0:00:52.4]} 7... Bd7 {[%clk 0:00:43.8]} 8. dxc6 {[%clk 0:00:49.8]} 8... Bxc6 {[%clk 0:00:43.5]} 9. Bxc6+ {[%clk 0:00:48.4]} 9... Nxc6 {[%clk 0:00:43.2]} 10. b4 {[%clk 0:00:45.4]} 10... Bxb4 {[%clk 0:00:41.1]} 11. c3 {[%clk 0:00:42.3]} 11... Be7 {[%clk 0:00:39.3]} 12. Na3 {[%clk 0:00:40.3]} 12... O-O {[%clk 0:00:38.4]} 13. Nc4 {[%clk 0:00:39.3]} 13... e4 {[%clk 0:00:37.6]} 14. Ne5 {[%clk 0:00:37.6]} 14... Nxe5 {[%clk 0:00:35.9]} 15. Qxe4 {[%clk 0:00:35.7]} 15... Nd3+ {[%clk 0:00:34.7]} 16. Qxd3 {[%clk 0:00:34.1]} 16... Qxd3 {[%clk 0:00:33]} 17. Ne2 {[%clk 0:00:33.2]} 17... Ne4 {[%clk 0:00:31.1]} 18. f3 {[%clk 0:00:31.7]} 18... Nc5 {[%clk 0:00:25.1]} 19. Rf1 {[%clk 0:00:30.2]} 19... Bh4+ {[%clk 0:00:24.2]} 20. Rf2 {[%clk 0:00:28.8]} 20... Bg5 {[%clk 0:00:23.9]} 21. f4 {[%clk 0:00:27.2]} 21... Bh4 {[%clk 0:00:22.8]} 22. g3 {[%clk 0:00:26.2]} 22... Bf6 {[%clk 0:00:21]} 23. Bb2 {[%clk 0:00:23.8]} 23... Bd8 {[%clk 0:00:20.6]} 24. a3 {[%clk 0:00:21.4]} 24... Ba5 {[%clk 0:00:19.8]} 25. Nd4 {[%clk 0:00:18.7]} 25... Nb3 {[%clk 0:00:19]} 26. Rf3 {[%clk 0:00:16.6]} 26... Qe4+ {[%clk 0:00:17.7]} 27. Re3 {[%clk 0:00:14.7]} 27... Qh1+ {[%clk 0:00:15.4]} 28. Ke2 {[%clk 0:00:13.3]} 28... Nxa1 {[%clk 0:00:13.1]} 29. Bxa1 {[%clk 0:00:11.6]} 29... Qxa1 {[%clk 0:00:12.8]} 30. Kf3 {[%clk 0:00:10.2]} 30... Qxa3 {[%clk 0:00:12.1]} 31. d3 {[%clk 0:00:08.6]} 31... Qd6 {[%clk 0:00:11.7]} 32. Re5 {[%clk 0:00:06.5]} 32... f6 {[%clk 0:00:10]} 33. Rxa5 {[%clk 0:00:05]} 33... b6 {[%clk 0:00:08.1]} 34. Rf5 {[%clk 0:00:02.2]} 34... g6 {[%clk 0:00:06.6]} 35. Rxf6 {[%clk 0:00:00.1]} 35... Qd5+ {[%clk 0:00:04.7]} 0-1

[Event "Live Chess"]
[Site "Chess.com"]
[Date "2010.12.06"]
[Round "-"]
[White "hipposcottimus"]
[Black "sham1308"]
[Result "0-1"]
[CurrentPosition "r3k3/p7/b1p5/2PpP3/Pp1P1pP1/1P1q1Qb1/3B3r/R2K2R1 b q -"]
[Timezone "UTC"]
[ECO "B00"]
[ECOUrl "https://www.chess.com/openings/Nimzowitsch-Defense-2.d4"]
[UTCDate "2010.12.06"]
[UTCTime "18:58:24"]
[WhiteElo "1522"]
[BlackElo "1460"]
[TimeControl "60"]
[Termination "sham1308 won by resignation"]
[StartTime "18:58:24"]
[EndDate "2010.12.06"]
[EndTime "19:00:14"]
[Link "https://www.chess.com/game/live/74675576"]

1. e4 {[%clk 0:01:00]} 1... Nc6 {[%clk 0:01:00]} 2. d4 {[%clk 0:00:59.1]} 2... Nb4 {[%clk 0:00:58.2]} 3. c3 {[%clk 0:00:57.2]} 3... Na6 {[%clk 0:00:56.8]} 4. f4 {[%clk 0:00:56]} 4... c6 {[%clk 0:00:55.7]} 5. c4 {[%clk 0:00:54.7]} 5... b5 {[%clk 0:00:54.9]} 6. c5 {[%clk 0:00:53.6]} 6... e6 {[%clk 0:00:53.2]} 7. e5 {[%clk 0:00:52.2]} 7... d5 {[%clk 0:00:52.3]} 8. Nf3 {[%clk 0:00:51]} 8... h6 {[%clk 0:00:50.8]} 9. a4 {[%clk 0:00:50]} 9... b4 {[%clk 0:00:49.3]} 10. Bxa6 {[%clk 0:00:48.6]} 10... Bxa6 {[%clk 0:00:47.5]} 11. b3 {[%clk 0:00:48.4]} 11... Qc7 {[%clk 0:00:45]} 12. Nbd2 {[%clk 0:00:47.8]} 12... f5 {[%clk 0:00:44]} 13. Nh4 {[%clk 0:00:45]} 13... Qf7 {[%clk 0:00:42.8]} 14. Qf3 {[%clk 0:00:37.7]} 14... g5 {[%clk 0:00:42.1]} 15. fxg5 {[%clk 0:00:35.6]} 15... hxg5 {[%clk 0:00:40.9]} 16. Nxf5 {[%clk 0:00:34.2]} 16... exf5 {[%clk 0:00:39.3]} 17. Qe3 {[%clk 0:00:33.6]} 17... f4 {[%clk 0:00:38.3]} 18. Qf3 {[%clk 0:00:33]} 18... Rh4 {[%clk 0:00:35.8]} 19. g3 {[%clk 0:00:31.2]} 19... Rh5 {[%clk 0:00:33.5]} 20. gxf4 {[%clk 0:00:29.9]} 20... gxf4 {[%clk 0:00:32.1]} 21. Rg1 {[%clk 0:00:28.8]} 21... Nh6 {[%clk 0:00:30.2]} 22. Nf1 {[%clk 0:00:27.4]} 22... Be7 {[%clk 0:00:29]} 23. h3 {[%clk 0:00:26.5]} 23... Bh4+ {[%clk 0:00:27.6]} 24. Kd2 {[%clk 0:00:23.5]} 24... Qf5 {[%clk 0:00:26.4]} 25. Nh2 {[%clk 0:00:21.6]} 25... Bg3 {[%clk 0:00:23.2]} 26. Ng4 {[%clk 0:00:20.1]} 26... Nxg4 {[%clk 0:00:19.3]} 27. hxg4 {[%clk 0:00:19.8]} 27... Rh2+ {[%clk 0:00:18]} 28. Kd1 {[%clk 0:00:17.3]} 28... Qd3+ {[%clk 0:00:14.3]} 29. Bd2 {[%clk 0:00:10.2]} 0-1

[Event "Live Chess"]
[Site "Chess.com"]
[Date "2010.12.06"]
[Round "-"]
[White "sham1308"]
[Black "hipposcottimus"]
[Result "0-1"]
[CurrentPosition "2rr2k1/5ppp/8/pp1PB3/5N2/P1q1Q1P1/8/3RK3 w - -"]
[Timezone "UTC"]
[ECO "C20"]
[ECOUrl "https://www.chess.com/openings/Kings-Pawn-Opening-Kings-Head-Opening"]
[UTCDate "2010.12.06"]
[UTCTime "18:55:53"]
[WhiteElo "1449"]
[BlackElo "1531"]
[TimeControl "60"]
[Termination "hipposcottimus won on time"]
[StartTime "18:55:53"]
[EndDate "2010.12.06"]
[EndTime "18:58:03"]
[Link "https://www.chess.com/game/live/74674842"]

1. e4 {[%clk 0:01:00]} 1... e5 {[%clk 0:01:00]} 2. f3 {[%clk 0:00:58.4]} 2... Nc6 {[%clk 0:00:59.6]} 3. c3 {[%clk 0:00:57.3]} 3... Nf6 {[%clk 0:00:58.7]} 4. Bc4 {[%clk 0:00:56.4]} 4... d5 {[%clk 0:00:58]} 5. Bb5 {[%clk 0:00:54.4]} 5... dxe4 {[%clk 0:00:52.6]} 6. Bxc6+ {[%clk 0:00:51.2]} 6... bxc6 {[%clk 0:00:52.2]} 7. fxe4 {[%clk 0:00:49.7]} 7... Nxe4 {[%clk 0:00:50.8]} 8. d3 {[%clk 0:00:49.1]} 8... Qh4+ {[%clk 0:00:49.8]} 9. g3 {[%clk 0:00:47.3]} 9... Nxg3 {[%clk 0:00:48.3]} 10. hxg3 {[%clk 0:00:45.7]} 10... Qxh1 {[%clk 0:00:47]} 11. Kd2 {[%clk 0:00:40.1]} 11... Qg2+ {[%clk 0:00:40.5]} 12. Ne2 {[%clk 0:00:39.2]} 12... Bg4 {[%clk 0:00:38.6]} 13. Kc2 {[%clk 0:00:37.4]} 13... Bxe2 {[%clk 0:00:36.1]} 14. Qd2 {[%clk 0:00:36.7]} 14... Qf1 {[%clk 0:00:28.1]} 15. c4 {[%clk 0:00:34.7]} 15... Bd6 {[%clk 0:00:22.4]} 16. Nc3 {[%clk 0:00:33.5]} 16... Rb8 {[%clk 0:00:20.7]} 17. Nxe2 {[%clk 0:00:32.1]} 17... Bb4 {[%clk 0:00:19]} 18. Qe3 {[%clk 0:00:27.6]} 18... Qf5 {[%clk 0:00:18.3]} 19. a3 {[%clk 0:00:24.9]} 19... Ba5 {[%clk 0:00:16.1]} 20. b4 {[%clk 0:00:23.7]} 20... Bb6 {[%clk 0:00:15.8]} 21. c5 {[%clk 0:00:22.3]} 21... O-O {[%clk 0:00:14.1]} 22. cxb6 {[%clk 0:00:20.4]} 22... cxb6 {[%clk 0:00:13.8]} 23. Bb2 {[%clk 0:00:18.2]} 23... Rfd8 {[%clk 0:00:13.5]} 24. Bxe5 {[%clk 0:00:15.6]} 24... Qg4 {[%clk 0:00:12.9]} 25. Nf4 {[%clk 0:00:14]} 25... Rbc8 {[%clk 0:00:11.2]} 26. d4 {[%clk 0:00:12.1]} 26... Qd7 {[%clk 0:00:10.8]} 27. Rd1 {[%clk 0:00:10.4]} 27... c5 {[%clk 0:00:10.4]} 28. bxc5 {[%clk 0:00:09]} 28... Qb7 {[%clk 0:00:09.5]} 29. c6 {[%clk 0:00:04.6]} 29... Qxc6+ {[%clk 0:00:08.4]} 30. Kd2 {[%clk 0:00:03.8]} 30... b5 {[%clk 0:00:07.8]} 31. Ke1 {[%clk 0:00:03]} 31... a5 {[%clk 0:00:07.1]} 32. d5 {[%clk 0:00:02.3]} 32... Qc3+ {[%clk 0:00:04.4]} 0-1

[Event "Live Chess"]
[Site "Chess.com"]
[Date "2010.12.06"]
[Round "-"]
[White "hipposcottimus"]
[Black "sham1308"]
[Result "0-1"]
[CurrentPosition "rn3br1/3k4/pq2p3/3bPp2/1p1P4/P3p1Pp/1P3B1P/R2Q1RK1 w - -"]
[Timezone "UTC"]
[ECO "B10"]
[ECOUrl "https://www.chess.com/openings/Caro-Kann-Defense-Masi-Variation"]
[UTCDate "2010.12.06"]
[UTCTime "18:53:27"]
[WhiteElo "1525"]
[BlackElo "1455"]
[TimeControl "60"]
[Termination "sham1308 won on time"]
[StartTime "18:53:27"]
[EndDate "2010.12.06"]
[EndTime "18:55:23"]
[Link "https://www.chess.com/game/live/74674170"]

1. e4 {[%clk 0:01:00]} 1... c6 {[%clk 0:01:00]} 2. d4 {[%clk 0:00:57.6]} 2... Nf6 {[%clk 0:00:58.7]} 3. e5 {[%clk 0:00:56.9]} 3... Ne4 {[%clk 0:00:57.2]} 4. f3 {[%clk 0:00:56.4]} 4... f5 {[%clk 0:00:51.6]} 5. fxe4 {[%clk 0:00:54.3]} 5... fxe4 {[%clk 0:00:50.1]} 6. Be3 {[%clk 0:00:53.8]} 6... d5 {[%clk 0:00:48.9]} 7. Ne2 {[%clk 0:00:51.5]} 7... g6 {[%clk 0:00:47.9]} 8. Ng3 {[%clk 0:00:51.2]} 8... h5 {[%clk 0:00:46.1]} 9. Be2 {[%clk 0:00:46.4]} 9... h4 {[%clk 0:00:43.5]} 10. Nf5 {[%clk 0:00:38.4]} 10... gxf5 {[%clk 0:00:41.6]} 11. Bh5+ {[%clk 0:00:34.2]} 11... Kd7 {[%clk 0:00:40.9]} 12. O-O {[%clk 0:00:33.8]} 12... e6 {[%clk 0:00:39.9]} 13. Nc3 {[%clk 0:00:30.1]} 13... Rg8 {[%clk 0:00:38.6]} 14. Be2 {[%clk 0:00:14.8]} 14... h3 {[%clk 0:00:37.3]} 15. g3 {[%clk 0:00:11.8]} 15... Qe7 {[%clk 0:00:35.9]} 16. Bb5 {[%clk 0:00:09.2]} 16... cxb5 {[%clk 0:00:33.9]} 17. Nxb5 {[%clk 0:00:08.7]} 17... a6 {[%clk 0:00:32.9]} 18. Na3 {[%clk 0:00:07.2]} 18... b5 {[%clk 0:00:31.4]} 19. c4 {[%clk 0:00:06.9]} 19... b4 {[%clk 0:00:30.1]} 20. Nc2 {[%clk 0:00:05.6]} 20... dxc4 {[%clk 0:00:29.1]} 21. Bf2 {[%clk 0:00:05.1]} 21... Bb7 {[%clk 0:00:25.6]} 22. Ne3 {[%clk 0:00:04.4]} 22... Qd8 {[%clk 0:00:22.4]} 23. Nxc4 {[%clk 0:00:03.3]} 23... Bd5 {[%clk 0:00:20.1]} 24. Nb6+ {[%clk 0:00:01.4]} 24... Qxb6 {[%clk 0:00:18]} 25. a3 {[%clk 0:00:00.5]} 25... e3 {[%clk 0:00:16]} 0-1

[Event "Live Chess"]
[Site "Chess.com"]
[Date "2010.12.06"]
[Round "-"]
[White "SuperbRookie"]
[Black "hipposcottimus"]
[Result "0-1"]
[CurrentPosition "6k1/pp4pp/2p1P2q/3p4/3P4/2P3Q1/PP5r/2K2rR1 w - -"]
[Timezone "UTC"]
[ECO "D00"]
[ECOUrl "https://www.chess.com/openings/Queens-Pawn-Opening-1...d5-2.c3"]
[UTCDate "2010.12.06"]
[UTCTime "18:50:45"]
[WhiteElo "1600"]
[BlackElo "1534"]
[TimeControl "60"]
[Termination "hipposcottimus won by checkmate"]
[StartTime "18:50:45"]
[EndDate "2010.12.06"]
[EndTime "18:52:34"]
[Link "https://www.chess.com/game/live/74673440"]

1. d4 {[%clk 0:01:00]} 1... d5 {[%clk 0:01:00]} 2. c3 {[%clk 0:00:59.4]} 2... c6 {[%clk 0:00:59.8]} 3. Nf3 {[%clk 0:00:58.8]} 3... Nd7 {[%clk 0:00:59.6]} 4. Bg5 {[%clk 0:00:56.5]} 4... e6 {[%clk 0:00:59.3]} 5. e3 {[%clk 0:00:55.8]} 5... f6 {[%clk 0:00:57.1]} 6. Bh4 {[%clk 0:00:54.7]} 6... Ne7 {[%clk 0:00:56.8]} 7. Bd3 {[%clk 0:00:53.6]} 7... Ng6 {[%clk 0:00:56.5]} 8. Nbd2 {[%clk 0:00:52.1]} 8... Be7 {[%clk 0:00:53.1]} 9. Qe2 {[%clk 0:00:49.5]} 9... f5 {[%clk 0:00:52.7]} 10. g4 {[%clk 0:00:48]} 10... Bxh4 {[%clk 0:00:50.8]} 11. Nxh4 {[%clk 0:00:46.3]} 11... Qxh4 {[%clk 0:00:49.1]} 12. gxf5 {[%clk 0:00:44.9]} 12... exf5 {[%clk 0:00:48.8]} 13. Bxf5 {[%clk 0:00:43]} 13... Ne7 {[%clk 0:00:46.3]} 14. Bc2 {[%clk 0:00:39.1]} 14... O-O {[%clk 0:00:44.8]} 15. O-O-O {[%clk 0:00:38]} 15... Nf6 {[%clk 0:00:44.2]} 16. Nf3 {[%clk 0:00:35.9]} 16... Qh6 {[%clk 0:00:41.9]} 17. Rhg1 {[%clk 0:00:33.6]} 17... Ne4 {[%clk 0:00:40.9]} 18. Ne5 {[%clk 0:00:29.8]} 18... Ng6 {[%clk 0:00:38.5]} 19. Qg4 {[%clk 0:00:26.1]} 19... Nxe5 {[%clk 0:00:36.2]} 20. Qg2 {[%clk 0:00:22.2]} 20... Nf3 {[%clk 0:00:35.3]} 21. Bxe4 {[%clk 0:00:18.8]} 21... Nxg1 {[%clk 0:00:34.1]} 22. Rxg1 {[%clk 0:00:17]} 22... Bf5 {[%clk 0:00:31]} 23. Bxf5 {[%clk 0:00:15.1]} 23... Rxf5 {[%clk 0:00:30.3]} 24. f4 {[%clk 0:00:13.7]} 24... Raf8 {[%clk 0:00:29.7]} 25. h4 {[%clk 0:00:12.7]} 25... Rh5 {[%clk 0:00:27]} 26. e4 {[%clk 0:00:10.8]} 26... Rxh4 {[%clk 0:00:26.2]} 27. e5 {[%clk 0:00:09.5]} 27... Rh2 {[%clk 0:00:24.8]} 28. Qg3 {[%clk 0:00:07.2]} 28... Rxf4 {[%clk 0:00:23.3]} 29. e6 {[%clk 0:00:03.7]} 29... Rf1# {[%clk 0:00:22.4]} 0-1

[Event "Live Chess"]
[Site "Chess.com"]
[Date "2010.12.06"]
[Round "-"]
[White "hipposcottimus"]
[Black "SuperbRookie"]
[Result "1-0"]
[CurrentPosition "rn3rk1/ppb2pp1/4p2p/8/7R/2N2P2/PPP2P1P/4R1K1 b - -"]
[Timezone "UTC"]
[ECO "C42"]
[ECOUrl "https://www.chess.com/openings/Petrovs-Defense-Urusov-Lichtenhein-Defense"]
[UTCDate "2010.12.06"]
[UTCTime "18:48:14"]
[WhiteElo "1534"]
[BlackElo "1600"]
[TimeControl "60"]
[Termination "hipposcottimus won on time"]
[StartTime "18:48:14"]
[EndDate "2010.12.06"]
[EndTime "18:50:13"]
[Link "https://www.chess.com/game/live/74672741"]

1. e4 {[%clk 0:01:00]} 1... e5 {[%clk 0:01:00]} 2. Nf3 {[%clk 0:00:59.7]} 2... Nf6 {[%clk 0:00:55.1]} 3. Bc4 {[%clk 0:00:57.8]} 3... Nxe4 {[%clk 0:00:53]} 4. Nxe5 {[%clk 0:00:57.1]} 4... Qf6 {[%clk 0:00:50]} 5. Nf3 {[%clk 0:00:46.7]} 5... Bc5 {[%clk 0:00:46.9]} 6. d4 {[%clk 0:00:43.4]} 6... Bb6 {[%clk 0:00:43.5]} 7. O-O {[%clk 0:00:40.2]} 7... c6 {[%clk 0:00:38.1]} 8. Bg5 {[%clk 0:00:39.7]} 8... Nxg5 {[%clk 0:00:30.1]} 9. Re1+ {[%clk 0:00:36.3]} 9... Ne6 {[%clk 0:00:27.8]} 10. d5 {[%clk 0:00:33.7]} 10... cxd5 {[%clk 0:00:25.9]} 11. Bxd5 {[%clk 0:00:33.1]} 11... Bc7 {[%clk 0:00:25.1]} 12. Nc3 {[%clk 0:00:31.1]} 12... Qf4 {[%clk 0:00:23.2]} 13. Bxe6 {[%clk 0:00:21.6]} 13... dxe6 {[%clk 0:00:19.4]} 14. Re4 {[%clk 0:00:21.1]} 14... Qf5 {[%clk 0:00:16.9]} 15. Qe2 {[%clk 0:00:20.1]} 15... O-O {[%clk 0:00:15.1]} 16. Re1 {[%clk 0:00:19.6]} 16... Bd7 {[%clk 0:00:13.5]} 17. Rh4 {[%clk 0:00:18.6]} 17... Bc6 {[%clk 0:00:12.3]} 18. Rh3 {[%clk 0:00:15.9]} 18... Bxf3 {[%clk 0:00:10.9]} 19. Qxf3 {[%clk 0:00:15.5]} 19... Qc5 {[%clk 0:00:09.1]} 20. Qh5 {[%clk 0:00:13.9]} 20... h6 {[%clk 0:00:06.4]} 21. Qf3 {[%clk 0:00:12.8]} 21... Qf5 {[%clk 0:00:05.2]} 22. Rh4 {[%clk 0:00:09.5]} 22... Qxf3 {[%clk 0:00:03]} 23. gxf3 {[%clk 0:00:09.3]} 1-0

[Event "Live Chess"]
[Site "Chess.com"]
[Date "2010.12.06"]
[Round "-"]
[White "hipposcottimus"]
[Black "freddyp91"]
[Result "0-1"]
[CurrentPosition "7k/5pp1/P3p2p/4P2b/8/6Pn/1r6/r4K2 w - -"]
[Timezone "UTC"]
[ECO "B20"]
[ECOUrl "https://www.chess.com/openings/Sicilian-Defense"]
[UTCDate "2010.12.06"]
[UTCTime "01:05:48"]
[WhiteElo "1534"]
[BlackElo "1462"]
[TimeControl "120"]
[Termination "freddyp91 won by checkmate"]
[StartTime "01:05:48"]
[EndDate "2010.12.06"]
[EndTime "01:09:57"]
[Link "https://www.chess.com/game/live/74447300"]

1. e4 {[%clk 0:02:00]} 1... c5 {[%clk 0:02:00]} 2. Bb5 {[%clk 0:01:58.4]} 2... Nf6 {[%clk 0:01:56.6]} 3. e5 {[%clk 0:01:56.3]} 3... Nd5 {[%clk 0:01:51.9]} 4. Nf3 {[%clk 0:01:55]} 4... e6 {[%clk 0:01:50.6]} 5. d4 {[%clk 0:01:53.1]} 5... Qa5+ {[%clk 0:01:48.6]} 6. Nc3 {[%clk 0:01:42.5]} 6... Nxc3 {[%clk 0:01:45.8]} 7. Bd2 {[%clk 0:01:41.2]} 7... Qxb5 {[%clk 0:01:41]} 8. Bxc3 {[%clk 0:01:40.3]} 8... cxd4 {[%clk 0:01:39.6]} 9. Nxd4 {[%clk 0:01:38.9]} 9... Qa6 {[%clk 0:01:35.3]} 10. b4 {[%clk 0:01:33.8]} 10... Qc4 {[%clk 0:01:32.1]} 11. Qd3 {[%clk 0:01:29.2]} 11... Qxd3 {[%clk 0:01:27.2]} 12. cxd3 {[%clk 0:01:28.9]} 12... Be7 {[%clk 0:01:24.5]} 13. Nb5 {[%clk 0:01:28.5]} 13... Na6 {[%clk 0:01:19.8]} 14. O-O {[%clk 0:01:27.4]} 14... O-O {[%clk 0:01:16.8]} 15. Nd4 {[%clk 0:01:27.1]} 15... d6 {[%clk 0:01:13.1]} 16. f4 {[%clk 0:01:26.8]} 16... dxe5 {[%clk 0:01:10.5]} 17. fxe5 {[%clk 0:01:26.5]} 17... Bd7 {[%clk 0:01:09.8]} 18. Nf3 {[%clk 0:01:25.8]} 18... Rac8 {[%clk 0:01:08.7]} 19. d4 {[%clk 0:01:25.4]} 19... Rxc3 {[%clk 0:01:06.8]} 20. b5 {[%clk 0:01:24.7]} 20... Nb4 {[%clk 0:01:05.8]} 21. a3 {[%clk 0:01:22.4]} 21... Nd3 {[%clk 0:01:02.8]} 22. Nd2 {[%clk 0:01:16.1]} 22... Bxb5 {[%clk 0:00:59.5]} 23. Ne4 {[%clk 0:01:15.6]} 23... Rc2 {[%clk 0:00:55.7]} 24. Rfd1 {[%clk 0:01:13.5]} 24... Nf4 {[%clk 0:00:53.4]} 25. Nc5 {[%clk 0:01:11.8]} 25... Bxc5 {[%clk 0:00:51.4]} 26. dxc5 {[%clk 0:01:10.1]} 26... Rxc5 {[%clk 0:00:50.9]} 27. Rdb1 {[%clk 0:01:06.9]} 27... a6 {[%clk 0:00:48]} 28. a4 {[%clk 0:01:05]} 28... Bc6 {[%clk 0:00:44.4]} 29. g3 {[%clk 0:00:59.1]} 29... Nh3+ {[%clk 0:00:43.3]} 30. Kf1 {[%clk 0:00:57.5]} 30... Rd8 {[%clk 0:00:41.6]} 31. Ke2 {[%clk 0:00:56.5]} 31... Rc2+ {[%clk 0:00:37]} 32. Ke1 {[%clk 0:00:54.5]} 32... Bf3 {[%clk 0:00:33.6]} 33. Rb3 {[%clk 0:00:39.5]} 33... Re2+ {[%clk 0:00:29.4]} 34. Kf1 {[%clk 0:00:37.9]} 34... Bh5 {[%clk 0:00:28.8]} 35. Rxb7 {[%clk 0:00:32.1]} 35... h6 {[%clk 0:00:21.5]} 36. Rb6 {[%clk 0:00:17.6]} 36... Rdd2 {[%clk 0:00:20]} 37. Rxa6 {[%clk 0:00:15.8]} 37... Rf2+ {[%clk 0:00:18.5]} 38. Ke1 {[%clk 0:00:14.2]} 38... Rxh2 {[%clk 0:00:15.2]} 39. Ra8+ {[%clk 0:00:10.4]} 39... Kh7 {[%clk 0:00:13.4]} 40. Rh8+ {[%clk 0:00:10.1]} 40... Kxh8 {[%clk 0:00:11.3]} 41. Ra2 {[%clk 0:00:09.7]} 41... Rhe2+ {[%clk 0:00:09.9]} 42. Kf1 {[%clk 0:00:07.8]} 42... Rxa2 {[%clk 0:00:09.4]} 43. a5 {[%clk 0:00:06.4]} 43... Reb2 {[%clk 0:00:09.1]} 44. a6 {[%clk 0:00:04.7]} 44... Ra1# {[%clk 0:00:08.7]} 0-1

[Event "Live Chess"]
[Site "Chess.com"]
[Date "2010.12.06"]
[Round "-"]
[White "freddyp91"]
[Black "hipposcottimus"]
[Result "1-0"]
[CurrentPosition "4Qk2/pp3ppp/8/1p1p4/8/1N1r1P2/PP4PP/4R2K b - -"]
[Timezone "UTC"]
[ECO "C65"]
[ECOUrl "https://www.chess.com/openings/Ruy-Lopez-Opening-Berlin-Defense-4.O-O"]
[UTCDate "2010.12.06"]
[UTCTime "01:03:23"]
[WhiteElo "1451"]
[BlackElo "1543"]
[TimeControl "120"]
[Termination "freddyp91 won by checkmate"]
[StartTime "01:03:23"]
[EndDate "2010.12.06"]
[EndTime "01:05:11"]
[Link "https://www.chess.com/game/live/74446826"]

1. e4 {[%clk 0:02:00]} 1... e5 {[%clk 0:02:00]} 2. Nf3 {[%clk 0:01:59.4]} 2... Nc6 {[%clk 0:01:59.7]} 3. Bb5 {[%clk 0:01:57.9]} 3... Nf6 {[%clk 0:01:59]} 4. O-O {[%clk 0:01:56.2]} 4... Nd4 {[%clk 0:01:57.9]} 5. Nxd4 {[%clk 0:01:54.3]} 5... exd4 {[%clk 0:01:57.4]} 6. e5 {[%clk 0:01:53.6]} 6... c6 {[%clk 0:01:56.8]} 7. exf6 {[%clk 0:01:52.4]} 7... cxb5 {[%clk 0:01:56.3]} 8. Re1+ {[%clk 0:01:51.2]} 8... Be7 {[%clk 0:01:52]} 9. Rxe7+ {[%clk 0:01:50.2]} 9... Kf8 {[%clk 0:01:49.2]} 10. Re1 {[%clk 0:01:46.6]} 10... d6 {[%clk 0:01:48.6]} 11. Qe2 {[%clk 0:01:45.3]} 11... Bd7 {[%clk 0:01:44.4]} 12. d3 {[%clk 0:01:43.3]} 12... Qxf6 {[%clk 0:01:43.4]} 13. c3 {[%clk 0:01:38.3]} 13... Bc6 {[%clk 0:01:42.7]} 14. f3 {[%clk 0:01:35.4]} 14... Re8 {[%clk 0:01:37.9]} 15. Qd2 {[%clk 0:01:32.4]} 15... Rxe1+ {[%clk 0:01:36.5]} 16. Qxe1 {[%clk 0:01:31.5]} 16... Bd7 {[%clk 0:01:36.2]} 17. cxd4 {[%clk 0:01:29.5]} 17... Be6 {[%clk 0:01:35.9]} 18. Nd2 {[%clk 0:01:26.5]} 18... Ke7 {[%clk 0:01:34.6]} 19. Kh1 {[%clk 0:01:22]} 19... Re8 {[%clk 0:01:32.6]} 20. d5 {[%clk 0:01:19.6]} 20... Kf8 {[%clk 0:01:27.1]} 21. dxe6 {[%clk 0:01:18.9]} 21... Rxe6 {[%clk 0:01:26.7]} 22. Qf1 {[%clk 0:01:18.1]} 22... Qd4 {[%clk 0:01:24.6]} 23. Nb3 {[%clk 0:01:13.4]} 23... Qe3 {[%clk 0:01:22.5]} 24. Bxe3 {[%clk 0:01:11.3]} 24... Rxe3 {[%clk 0:01:19.9]} 25. Re1 {[%clk 0:01:10.8]} 25... Rxd3 {[%clk 0:01:19.1]} 26. Qe2 {[%clk 0:01:08.7]} 26... d5 {[%clk 0:01:18.9]} 27. Qe8# {[%clk 0:01:07.1]} 1-0